bitfinex-derivatives/quotes_ETHF0:USTF0_20260131
["timestamp","ask_amount","ask_price","bid_price","bid_amount"]
[1769854089446,6.15879605,2642.6,2641.5,3.66377156]
[1769854089648,4.56542217,2642.5,2641.5,3.66377156]
[1769854089847,4.56542217,2642.4,2641.5,3.66377156]
[1769854090049,6.15879605,2642.6,2641.5,3.66377156]
[1769854090250,4.56542217,2642.5,2641.5,3.66377156]
[1769854090445,4.56542217,2642.4,2641.5,3.66377156]
[1769854090651,6.15879605,2642.6,2641.5,3.66377156]
[1769854090847,4.56022211,2642.5,2641.5,3.66377156]
[1769854091047,4.56022211,2642.4,2641.5,3.66377156]
[1769854091244,3.8881636,2642.3,2641.4,0.1896]
[1769854091449,8.44865576,2642.2,2641.4,0.1896]
[1769854091652,3.8881636,2642.2,2641.4,0.1896]
[1769854092454,3.8881636,2642.0,2641.3,0.00460269]
[1769854093156,4.56048786,2641.9,2641.0,3.923062]
[1769854093342,5.21,2642.0,2641.0,3.923062]
[1769854093547,4.55815417,2641.9,2641.0,3.923062]
[1769854093846,5.21,2642.0,2641.0,3.923062]
[1769854094051,5.21,2642.0,2641.0,3.92599959]
[1769854094749,3.8881636,2642.2,2641.0,4.11562959]
[1769854095054,4.55678706,2642.1,2641.0,4.11562959]
[1769854095253,3.8881636,2642.2,2641.0,4.11562959]
[1769854095446,4.55623786,2642.1,2641.0,4.11562959]
[1769854095646,3.8881636,2642.2,2641.0,4.11562959]
[1769854095950,3.8881636,2642.0,2641.0,4.11562959]
[1769854096153,5.215,2642.2,2641.0,4.11562959]
[1769854096454,4.55622412,2642.1,2641.0,4.11562959]
[1769854096650,3.8881636,2642.1,2641.0,4.11562959]
[1769854097149,3.8881636,2642.1,2640.0,13.67495196]
[1769854097355,3.8881636,2641.6,2640.1,3.923062]
[1769854097551,2.222,2641.5,2640.5,3.923062]
[1769854097944,3.8881636,2641.7,2640.8,3.923062]
[1769854098147,4.5529714,2641.6,2640.8,3.92748273]
[1769854098349,3.8881636,2641.7,2640.8,3.92748273]
[1769854100154,5.226,2641.8,2641.0,3.923062]
[1769854100454,9.1141636,2641.8,2641.0,3.923062]
[1769854100652,3.8881636,2641.7,2641.0,3.923062]
[1769854101354,3.8881636,2641.7,2640.8,3.92748273]
[1769854101654,3.8881636,2641.7,2640.8,0.00442073]
[1769854102957,3.8881636,2641.7,2640.8,3.92748273]
[1769854103156,3.8881636,2641.7,2640.8,0.00442073]
[1769854106261,3.8881636,2641.7,2640.3,4.112742]
[1769854107360,3.8881636,2641.7,2640.3,4.11595429]
[1769854108558,3.8881636,2641.5,2640.3,0.00321229]
[1769854108972,3.8881636,2641.5,2640.3,3.92627429]
[1769854109471,3.8881636,2641.4,2640.3,0.00321229]
[1769854112878,3.8881636,2641.2,2639.8,4.112772]
[1769854113078,3.8881636,2641.0,2639.8,4.302442]
[1769854113279,3.8881636,2641.0,2639.9,0.18967]
[1769854113673,3.8881636,2641.0,2639.8,4.112772]
[1769854113674,3.8881636,2641.0,2640.0,0.18967]
[1769854113875,3.8881636,2641.0,2640.0,0.00309769]
[1769854114076,3.8881636,2641.0,2639.6,3.923062]
[1769854114376,3.8881636,2641.0,2639.7,0.18967]
[1769854114773,3.8881636,2640.7,2639.3,3.923062]
[1769854115172,3.8881636,2640.6,2639.3,0.00461105]
[1769854115473,3.8881636,2640.0,2638.6,3.923062]
[1769854115668,3.8881636,2640.0,2639.1,3.923062]
[1769854116068,3.8881636,2640.0,2639.4,0.18967]
[1769854116276,3.8881636,2640.0,2638.9,3.923062]
[1769854116678,3.8881636,2640.0,2639.1,0.18967]
[1769854117080,3.92908023,2640.3,2639.3,3.64676863]
[1769854117281,0.00318219,2640.7,2639.5,3.64676863]
[1769854117476,0.00318219,2640.7,2639.9,3.64676863]
[1769854117682,0.00318219,2640.7,2640.0,0.18967]
[1769854117873,0.00318219,2640.7,2640.1,0.18967]
[1769854118074,3.93226242,2640.7,2640.0,0.18967]
[1769854118274,3.93226242,2640.7,2640.1,0.18967]
[1769854118571,0.00318219,2640.7,2640.2,3.83643863]
[1769854118771,7.71908023,2641.0,2640.2,3.64676863]
[1769854118973,7.71908023,2641.0,2639.3,0.00415485]
[1769854119175,3.92908023,2641.2,2640.3,3.64676863]
[1769854119379,3.92908023,2641.5,2640.3,3.64676863]
[1769854119779,3.93385924,2641.5,2640.5,4.01759561]
[1769854119974,3.93385924,2641.5,2640.1,0.18969]
[1769854120179,3.93385924,2641.5,2640.1,4.01761561]
[1769854122683,3.88366054,2641.3,2639.4,3.82792561]
[1769854122883,3.88366054,2641.3,2639.8,3.82792561]
[1769854123681,3.88366054,2641.3,2639.8,4.01764561]
[1769854123886,3.88366054,2641.2,2639.8,4.01764561]
[1769854124585,3.928,2641.3,2640.0,3.82792561]
[1769854124779,7.81166054,2641.3,2640.0,3.82792561]
[1769854125088,3.88366054,2641.2,2639.9,4.01763561]
[1769854126782,3.928,2641.3,2639.9,4.01763561]
[1769854126976,3.928,2641.3,2640.1,3.82792561]
[1769854127179,3.928,2641.3,2640.1,4.01761561]
[1769854127989,3.88366054,2641.2,2640.1,4.01761561]
[1769854129084,3.88366054,2641.2,2639.5,4.01766561]
[1769854129291,3.88366054,2640.8,2639.5,4.01766561]
[1769854130792,3.88366054,2640.8,2639.5,0.18974]
[1769854131092,3.88366054,2640.8,2639.5,4.01766561]
[1769854131285,3.88366054,2640.6,2639.3,3.83208046]
[1769854131587,3.79,2640.8,2639.3,3.83208046]
[1769854131588,3.88366054,2640.4,2639.3,3.83208046]
[1769854134692,3.88366054,2640.4,2639.3,0.00415485]
[1769854134889,3.88366054,2640.1,2638.4,3.82792561]
[1769854135091,3.88366054,2639.9,2638.4,3.82792561]
[1769854135292,4.548,2639.8,2638.6,3.82792561]
[1769854135494,4.548,2639.8,2638.8,3.82792561]
[1769854135789,8.43166054,2639.8,2638.8,3.83238556]
[1769854137488,4.548,2639.8,2638.8,3.83238556]
[1769854140204,2.346,2640.6,2639.2,0.18976]
[1769854140395,9.19966054,2641.1,2639.5,3.82792561]
[1769854140591,3.88366054,2641.0,2639.5,3.82792561]
[1769854141410,3.88366054,2641.0,2639.5,4.01765561]
[1769854144400,3.88366054,2641.0,2639.5,3.82792561]
[1769854144607,3.88366054,2640.8,2639.1,3.82792561]
[1769854146007,3.88366054,2640.8,2639.1,4.01769561]
[1769854146207,3.88366054,2640.8,2639.4,3.82792561]
[1769854146503,3.88366054,2640.8,2639.4,4.01766561]
[1769854147604,3.88366054,2640.8,2639.6,3.78575922]
[1769854147797,8.98778273,2641.1,2639.6,3.97548922]
[1769854149504,3.67178273,2641.0,2639.9,3.78575922]
[1769854152105,3.67178273,2641.0,2639.0,1.77726252]
[1769854152304,3.67178273,2640.9,2639.5,3.78575922]
[1769854156411,3.67178273,2640.8,2639.5,3.78575922]
[1769854157111,2.26755338,2639.9,2637.0,18.7536345]
[1769854157312,0.18981,2638.6,2637.2,11.95762377]
[1769854157520,16.49029695,2638.5,2637.2,3.92911635]
[1769854157714,7.32229695,2638.4,2637.3,11.95762377]
[1769854157909,5.05772776,2638.3,2636.4,3.92911635]
[1769854158111,6.05456919,2637.7,2636.4,0.00378091]
[1769854158315,5.05772776,2637.6,2636.4,0.00378091]
[1769854158513,0.08532686,2637.4,2636.4,0.00378091]
[1769854158713,0.08532686,2637.2,2636.4,0.00378091]
[1769854159019,5.385,2637.2,2636.4,0.00378091]
[1769854159220,0.08532686,2637.1,2635.8,3.88645292]
[1769854159421,2.223,2637.0,2636.0,3.88645292]
[1769854159615,2.223,2637.1,2636.0,3.88645292]
[1769854159820,2.223,2637.1,2636.3,3.88645292]
[1769854160222,0.08532686,2637.7,2636.5,15.25125294]
[1769854160418,2.224,2637.4,2636.6,4.36327821]
[1769854160726,2.224,2637.4,2636.6,3.88645292]
[1769854160922,2.224,2637.4,2636.8,15.24983001]
[1769854161217,0.08532686,2638.0,2636.9,3.88502999]
[1769854161422,40.8,2638.2,2636.9,4.36185528]
[1769854161615,5.39237795,2638.3,2637.1,3.88502999]
[1769854161819,0.00337795,2638.3,2637.4,3.88502999]
[1769854162221,0.00337795,2638.3,2637.1,11.36480002]
[1769854162222,0.00337795,2638.3,2637.5,4.36185528]
[1769854162421,0.00337795,2638.3,2637.5,3.88502999]
[1769854162625,0.00337795,2638.3,2637.7,3.85637763]
[1769854162926,5.39,2638.6,2637.7,3.85637763]
[1769854163125,5.39,2638.6,2637.9,3.85637763]
[1769854163529,5.39,2638.6,2638.0,4.33320292]
[1769854163825,5.39433668,2638.6,2638.0,3.85637763]
[1769854164025,5.39433668,2638.6,2636.4,3.85637763]
[1769854164229,5.39433668,2638.6,2637.4,3.85637763]
[1769854164615,5.39433668,2638.6,2637.5,3.83569847]
[1769854165932,5.58117244,2638.6,2637.6,0.47682529]
[1769854166428,5.39433668,2638.6,2637.6,4.31252376]
[1769854168123,0.00433668,2638.6,2637.7,3.83223438]
[1769854168329,0.00433668,2638.6,2637.8,3.83223438]
[1769854168523,0.20106386,2638.6,2637.5,3.83075276]
[1769854169528,0.20106386,2638.6,2637.6,0.47682529]
[1769854170122,0.20106386,2638.6,2637.5,3.83075276]
[1769854170328,0.20106386,2638.6,2637.6,0.47682529]
[1769854170824,0.20106386,2638.6,2637.2,3.82795948]
[1769854171230,5.378,2638.5,2637.4,3.82795948]
[1769854171528,5.38,2638.5,2637.6,3.82795948]
[1769854172020,0.00433668,2638.6,2637.8,15.1927595]
[1769854172219,0.00433668,2638.6,2637.9,3.82795948]
[1769854172419,0.00433668,2638.6,2637.9,15.1927595]
[1769854173319,0.00433668,2638.6,2637.0,10.46692]
[1769854173525,0.00433668,2638.6,2637.5,3.79972174]
[1769854173926,0.00433668,2638.6,2637.5,15.16452176]
[1769854174228,0.00433668,2638.6,2637.6,3.79972174]
[1769854174628,0.00433668,2638.6,2637.7,3.79912863]
[1769854174834,0.00433668,2638.6,2637.9,3.79912863]
[1769854175126,0.00130182,2638.6,2637.4,3.79912863]
[1769854175327,2.225,2639.1,2637.9,3.79912863]
[1769854175719,2.225,2639.1,2638.1,3.79912863]
[1769854176235,0.00325677,2639.1,2638.3,3.79912863]
[1769854176425,5.381,2639.6,2638.5,3.79912863]
[1769854176624,5.381,2639.6,2638.7,3.83763865]
[1769854177430,5.38511977,2639.6,2638.7,3.83763865]
[1769854177625,5.57275408,2639.6,2638.7,3.83763865]
[1769854177935,0.18763431,2639.5,2638.4,3.83763423]
[1769854178137,0.18763431,2639.5,2638.4,4.31445952]
[1769854178329,0.18763431,2639.5,2638.4,15.67925954]
[1769854178530,0.18763431,2639.5,2638.5,3.83763423]
[1769854178730,0.23071981,2639.3,2638.4,0.47682529]
[1769854178927,0.23071981,2639.3,2638.3,0.00337368]
[1769854179131,0.23071981,2639.3,2638.3,0.48019897]
[1769854179425,0.23071981,2639.2,2638.3,0.48019897]
[1769854180032,0.23071981,2639.2,2638.3,4.39284674]
[1769854180231,7.64968896,2639.6,2638.6,3.91264777]
[1769854180437,5.02312121,2639.5,2638.6,3.91264777]
[1769854180632,5.02312121,2639.4,2638.6,4.38947306]
[1769854180826,5.394,2639.4,2638.6,4.38947306]
[1769854181031,5.394,2639.4,2638.8,3.91264777]
[1769854181439,5.394,2639.4,2638.8,15.27744779]
[1769854182233,5.09728928,2639.3,2638.9,11.36480002]
[1769854182433,5.394,2639.4,2638.9,11.36480002]
[1769854182638,5.09808535,2639.3,2638.3,0.00337368]
[1769854182937,5.09808535,2639.2,2638.3,0.48019897]
[1769854183338,7.36265454,2639.2,2638.3,0.00337368]
[1769854183531,5.09808535,2639.1,2638.3,0.00337368]
[1769854184038,5.09808535,2639.0,2638.3,0.00337368]
[1769854184233,7.36265454,2639.0,2638.3,0.00337368]
[1769854184433,5.09808535,2638.9,2638.3,0.00337368]
[1769854184740,10.52908535,2638.8,2638.3,15.45297651]
[1769854184927,5.431,2638.8,2638.4,3.91264777]
[1769854185131,5.431,2638.8,2638.5,11.06012977]
[1769854185434,5.1133984,2638.7,2638.5,11.06012977]
[1769854185635,5.431,2638.8,2638.6,11.06012977]
[1769854185834,5.1133984,2638.7,2638.5,11.06012977]
[1769854186146,5.431,2638.8,2638.5,11.06012977]
[1769854186334,5.11982928,2638.7,2638.5,11.056873]
[1769854186534,5.11982928,2638.6,2638.3,3.91602145]
[1769854186734,7.69556919,2638.8,2638.5,11.056873]
[1769854186936,5.1203178,2638.7,2638.5,11.056873]
[1769854187135,7.69556919,2638.8,2638.6,11.056873]
[1769854187331,5.12092508,2638.7,2638.5,9.72463254]
[1769854187543,5.12092508,2638.6,2638.5,9.72463254]
[1769854187735,5.12092508,2638.6,2638.3,3.91602145]
[1769854188041,7.69556919,2638.8,2638.5,9.72463254]
[1769854188343,5.12092564,2638.7,2638.5,9.72463254]
[1769854188639,5.12092564,2638.6,2638.3,3.91602145]
[1769854188840,7.69556919,2638.8,2638.5,9.72463254]
[1769854189043,5.12386214,2638.7,2638.5,9.72463254]
[1769854189235,7.38843133,2638.6,2638.3,0.00337368]
[1769854189430,5.12386214,2638.5,2638.4,9.72463254]
[1769854189635,5.12386214,2638.5,2638.3,0.48019897]
[1769854189841,5.12386214,2638.4,2638.3,0.48019897]
[1769854190336,5.12386214,2638.4,2638.3,10.20483151]
[1769854192541,5.12386214,2638.4,2638.3,9.72800622]
[1769854192840,3.73386214,2638.4,2638.3,13.64065399]
[1769854193343,9.31286214,2638.4,2638.3,9.62745874]
[1769854193634,5.3810773,2638.4,2638.3,13.55924358]
[1769854193843,0.39663003,2638.4,2638.3,14.03606887]
[1769854194041,0.39663003,2638.4,2638.3,10.10428403]
[1769854194245,0.39663003,2638.4,2638.3,10.10778099]
[1769854194637,5.604,2638.5,2638.3,10.10778099]
[1769854194837,5.604,2638.5,2638.3,4.39297002]
[1769854195037,5.604,2638.5,2638.4,9.62745874]
[1769854195844,31.53615426,2638.7,2638.4,3.91264777]
[1769854196041,5.628,2638.6,2638.4,3.91264777]
[1769854196246,5.628,2638.7,2638.4,3.91264777]
[1769854196747,5.628,2638.7,2638.3,3.21723607]
[1769854197451,5.634,2638.9,2638.3,3.21723607]
[1769854197946,3.87554204,2638.8,2638.3,0.00349696]
[1769854198750,5.634,2638.9,2637.8,3.21373911]
[1769854199747,5.634,2638.9,2637.8,3.21775537]
[1769854201243,5.634,2638.9,2638.0,3.1962785]
[1769854201442,8.37845792,2639.3,2638.0,3.1962785]
[1769854201653,4.50291588,2639.3,2638.0,3.1962785]
[1769854201846,8.38257769,2639.6,2638.2,3.3861085]
[1769854202147,3.87554204,2639.5,2638.2,3.3861085]
[1769854204650,3.87554204,2639.5,2638.2,0.18983]
[1769854204949,3.87554204,2639.2,2637.8,3.31454977]
[1769854205744,4.92146235,2639.1,2637.8,3.31454977]
[1769854205944,3.87554204,2638.9,2637.8,3.31454977]
[1769854206141,8.79700439,2638.8,2637.8,3.31454977]
[1769854206445,3.87554204,2638.8,2637.8,3.31454977]
[1769854206638,3.87554204,2639.0,2637.8,3.31454977]
[1769854206836,4.92148268,2638.9,2637.8,3.31454977]
[1769854207039,3.87554204,2639.0,2637.8,3.31454977]
[1769854207242,4.92147814,2638.9,2637.8,3.31454977]
[1769854207448,3.87554204,2639.0,2637.8,3.31454977]
[1769854207651,4.92161255,2638.9,2637.8,3.31454977]
[1769854207949,3.58282306,2639.2,2637.8,3.31454977]
[1769854208149,8.5044237,2639.1,2637.8,3.31454977]
[1769854208345,4.92160064,2639.0,2637.8,3.31454977]
[1769854208550,4.92160064,2638.9,2637.8,3.31454977]
[1769854208848,3.58282306,2639.3,2637.8,3.50440977]
[1769854209144,4.92150846,2639.2,2637.8,3.50440977]
[1769854209350,4.92150846,2639.1,2638.0,3.34959676]
[1769854209548,4.92150846,2639.0,2638.0,3.34959676]
[1769854209749,3.58282306,2639.3,2638.0,3.34959676]
[1769854209950,4.92129705,2639.2,2638.0,3.34959676]
[1769854210145,4.92129705,2639.1,2638.2,3.34959676]
[1769854210454,3.58694283,2639.6,2638.2,3.34959676]
[1769854210649,4.92028475,2639.5,2638.2,3.34959676]
[1769854210852,0.00411977,2639.6,2638.2,3.34959676]
[1769854211151,0.00411977,2639.6,2638.5,3.36533492]
[1769854212451,0.00411977,2639.6,2638.5,3.55514492]
[1769854212645,3.58282306,2640.3,2638.8,3.20155653]
[1769854212847,3.58282306,2640.5,2639.1,3.20155653]
[1769854213051,4.85532631,2640.4,2639.1,3.20155653]
[1769854213251,3.58282306,2640.5,2639.1,3.20155653]
[1769854213649,3.58611263,2640.5,2639.1,3.20155653]
[1769854215251,3.58611263,2640.5,2639.3,3.19462885]
[1769854219755,3.58611263,2640.5,2639.3,3.38437885]
[1769854224166,0.00328957,2640.5,2639.5,3.17544038]
[1769854224664,0.00328957,2640.5,2639.5,3.36518038]
[1769854225764,0.00328957,2640.5,2639.7,3.17428263]
[1769854225963,0.00328957,2640.5,2639.7,3.17816897]
[1769854226567,3.58282306,2640.4,2639.7,0.00388634]
[1769854227259,0.00328957,2640.5,2639.7,3.075446]
[1769854228056,3.58282306,2640.7,2639.7,3.075446]
[1769854228267,3.58282306,2640.9,2639.7,3.265166]
[1769854228456,3.58282306,2641.1,2639.9,3.07155966]
[1769854228861,3.58282306,2641.1,2640.1,0.18969]
[1769854229257,3.58748315,2641.1,2640.1,0.18969]
[1769854229662,3.58748315,2641.1,2640.1,3.06166746]
[1769854230261,3.58748315,2641.1,2640.1,0.18969]
[1769854231565,3.58748315,2641.1,2640.1,3.08183719]
[1769854233163,3.58748315,2641.1,2639.7,2.92597106]
[1769854233370,3.58748315,2641.1,2639.7,0.00388634]
[1769854234467,3.58282306,2640.9,2639.7,0.00388634]
[1769854234964,3.58282306,2640.9,2639.4,0.18974]
[1769854235369,3.58282306,2640.7,2639.4,0.18974]
[1769854236061,3.58282306,2640.7,2639.4,0.19385612]
[1769854239269,4.85022388,2640.6,2639.4,0.19385612]
[1769854239471,3.64618115,2640.5,2639.4,0.19385612]
[1769854239668,3.64618115,2640.5,2639.4,3.08613173]
[1769854241076,3.90668541,2640.8,2639.6,2.91813866]
[1769854241375,3.90668541,2640.8,2639.7,0.18972]
[1769854241675,3.90668541,2640.8,2639.7,3.10785866]
[1769854251692,3.90668541,2640.8,2639.8,3.18122063]
[1769854252994,3.90668541,2640.8,2639.8,0.18972]
[1769854254090,3.90668541,2640.6,2639.8,0.18972]
[1769854256200,3.90668541,2640.6,2639.8,3.14101479]
[1769854257098,3.90668541,2641.0,2639.8,3.14101479]
[1769854260796,3.90668541,2640.8,2639.8,3.14101479]
[1769854261303,3.90668541,2640.8,2639.8,0.18972]
[1769854262100,3.90668541,2640.8,2639.8,3.17478448]
[1769854264808,3.90668541,2640.8,2639.9,3.18321316]
[1769854265609,3.90259168,2640.8,2640.0,4.34379426]
[1769854265905,0.00466009,2641.1,2640.4,2.99759689]
[1769854267304,0.00466009,2641.1,2640.4,3.18726689]
[1769854268807,0.00466009,2641.1,2640.5,3.29553503]
[1769854271001,3.91189408,2641.6,2640.7,3.30390789]
[1769854271306,3.91189408,2641.6,2640.9,0.18964]
[1769854271506,6.05997052,2642.3,2640.9,0.18964]
[1769854271507,3.91189408,2642.2,2640.9,3.30389789]
[1769854271708,3.91189408,2642.0,2641.0,3.30388789]
[1769854272104,3.91626093,2642.0,2641.0,3.30388789]
[1769854277998,3.91626093,2642.0,2641.2,3.17180564]
[1769854279005,3.91626093,2642.0,2641.3,3.19059546]
[1769854279209,0.00436685,2642.0,2641.3,3.19417331]
[1769854283516,0.00436685,2642.0,2641.5,2.9840645]
[1769854283708,0.00436685,2642.0,2641.5,3.1736545]
[1769854285219,3.91189408,2642.4,2641.5,0.18959]
[1769854286117,3.91462558,2642.4,2641.5,0.18959]
[1769854287218,3.91462558,2642.4,2641.5,3.19943969]
[1769854288217,3.91462558,2642.4,2641.7,3.00984969]
[1769854290319,3.91462558,2642.4,2641.6,0.18959]
[1769854293019,3.91189408,2642.2,2641.3,0.00357785]
[1769854302337,3.91189408,2642.2,2641.3,3.01812632]
[1769854302535,3.91189408,2642.2,2641.3,0.00357785]
[1769854302734,0.0027315,2642.4,2641.3,0.00357785]
[1769854302735,3.67787902,2642.4,2641.6,3.06363154]
[1769854304637,3.67787902,2642.4,2641.6,3.25321154]
[1769854306036,3.67787902,2642.4,2641.7,0.18958]
[1769854306234,3.67787902,2642.4,2641.7,3.24804483]
[1769854307434,0.0027315,2642.4,2641.7,3.24804483]
[1769854307744,0.0027315,2642.4,2641.8,3.25755885]
[1769854310537,3.67787902,2642.4,2641.3,0.00357785]
[1769854311436,3.67787902,2642.4,2641.3,3.02896061]
[1769854311930,3.67787902,2642.4,2641.3,4.37799332]
[1769854313640,3.67787902,2642.4,2641.4,2.9889126]
[1769854316944,3.67787902,2642.4,2641.4,3.1785126]
[1769854320050,3.67787902,2642.4,2641.5,0.18959]
[1769854320251,3.67787902,2642.4,2641.6,2.96284367]
[1769854320549,3.67787902,2642.4,2641.7,0.18958]
[1769854344559,3.67787902,2642.4,2641.3,0.00357785]
[1769854344752,3.67787902,2642.4,2641.1,0.18962]
[1769854344957,3.63162535,2642.2,2640.6,9.79926954]
[1769854345158,3.63162535,2642.0,2640.5,0.18966]
[1769854345352,3.63162535,2641.8,2640.3,6.263]
[1769854345762,3.63162535,2641.8,2640.3,6.26612753]
[1769854346263,3.63162535,2641.8,2640.5,0.18966]
[1769854352173,3.63162535,2641.8,2640.5,3.82518291]
[1769854357478,3.63162535,2641.8,2640.5,0.18966]
[1769854359178,3.74772169,2641.7,2640.3,0.00312753]
[1769854362681,7.54272169,2641.7,2640.1,0.18969]
[1769854362874,3.62130907,2641.6,2640.1,0.18969]
[1769854363075,3.62130907,2641.4,2640.1,0.18969]
[1769854363780,3.62130907,2641.4,2640.1,0.19372109]
[1769854365374,3.62130907,2641.4,2640.1,0.00403109]
[1769854366477,4.78070925,2641.4,2640.1,0.00403109]
[1769854366671,3.62130907,2641.3,2640.1,0.00403109]
[1769854367072,37.63945337,2641.7,2640.1,0.00403109]
[1769854367073,3.62130907,2642.2,2641.0,3.6460168]
[1769854367781,3.62130907,2642.2,2640.7,3.6460168]
[1769854367979,3.62130907,2642.1,2640.3,3.8356968]
[1769854368178,3.62130907,2642.1,2640.4,3.8356868]
[1769854369480,3.62130907,2642.1,2640.6,3.6460168]
[1769854369879,3.62130907,2642.1,2640.6,3.8356768]
[1769854370081,33.70271752,2643.8,2642.5,0.18952]
[1769854370282,3.62130907,2643.7,2642.5,0.18952]
[1769854370979,5.89127959,2643.5,2642.5,0.00330208]
[1769854371285,3.62130907,2643.4,2642.5,0.00330208]
[1769854371582,3.62130907,2643.3,2642.5,0.00330208]
[1769854371785,5.89127959,2643.3,2642.5,0.00330208]
[1769854371982,3.62130907,2643.2,2642.5,0.00330208]
[1769854374683,3.62130907,2643.1,2642.5,0.00330208]
[1769854374886,3.62130907,2642.9,2642.1,0.18955]
[1769854375988,3.62130907,2642.9,2642.1,0.19352748]
[1769854378085,3.62130907,2642.6,2642.1,0.19352748]
[1769854378285,3.62130907,2642.6,2642.1,0.18955]
[1769854378490,3.62130907,2642.4,2641.4,3.12150829]
[1769854379190,3.62130907,2642.4,2641.4,3.12492944]
[1769854380286,0.00478533,2643.7,2642.1,0.18955]
[1769854380593,6.009,2643.6,2642.1,0.18955]
[1769854380886,2.26997052,2643.5,2642.1,0.18955]
[1769854381092,2.26997052,2643.4,2642.1,0.18955]
[1769854381691,2.26997052,2643.3,2642.1,0.18955]
[1769854381990,2.26997052,2643.4,2642.1,0.18955]
[1769854382292,3.62130907,2643.3,2642.2,0.18954]
[1769854382781,3.62130907,2643.1,2642.2,0.18954]
[1769854383183,3.62130907,2643.0,2642.2,0.18954]
[1769854383691,3.62130907,2643.6,2642.5,0.18952]
[1769854384192,5.89127959,2643.2,2642.5,0.18952]
[1769854384391,3.62130907,2643.2,2642.5,0.18952]
[1769854384594,5.89127959,2643.0,2642.5,0.18952]
[1769854384786,3.62130907,2643.0,2642.5,0.18952]
[1769854384986,2.26997052,2642.9,2642.5,0.18952]
[1769854386386,2.26997052,2642.8,2642.5,0.18952]
[1769854386689,3.62130907,2643.0,2642.5,0.18952]
[1769854387194,3.62130907,2643.0,2642.6,0.18951]
[1769854387386,3.84354051,2643.6,2642.7,0.18951]
[1769854387587,3.84354051,2643.4,2642.7,0.18951]
[1769854387787,3.84354051,2643.2,2642.7,0.18951]
[1769854388188,6.11351103,2643.1,2642.7,0.18951]
[1769854388493,3.84354051,2643.4,2642.7,0.18951]
[1769854388984,6.11351103,2643.3,2642.7,0.18951]
[1769854389292,3.84354051,2643.3,2642.7,0.18951]
[1769854389495,6.11351103,2643.3,2642.7,0.18951]
[1769854390493,3.84354051,2643.2,2642.7,0.18951]
[1769854391087,3.84354051,2643.1,2642.7,0.18951]
[1769854393097,6.11351103,2643.1,2642.7,0.18951]
[1769854393499,0.00478533,2643.7,2643.1,0.18948]
[1769854393500,3.84832584,2643.7,2643.1,0.18948]
[1769854393995,6.11351103,2643.5,2643.1,0.18948]
[1769854394189,2.93510929,2644.5,2643.1,0.18948]
[1769854395192,1.15799947,2644.4,2643.1,0.18948]
[1769854395389,1.15799947,2644.4,2642.7,1.15799947]
[1769854396196,3.84354051,2644.3,2643.1,0.18948]
[1769854397497,3.84354051,2644.3,2643.6,1.15799947]
[1769854397796,3.84354051,2644.3,2643.6,1.16067297]
[1769854398399,3.84354051,2644.3,2643.7,0.18943]
[1769854400690,3.84753164,2644.5,2643.8,0.18943]
[1769854402494,3.84753164,2644.5,2643.1,8.21219044]
[1769854402695,3.84753164,2644.5,2642.6,11.98810111]
[1769854402892,3.84753164,2644.5,2642.7,3.77591067]
[1769854403597,3.84753164,2644.5,2642.7,3.78061331]
[1769854404186,3.84753164,2644.5,2643.0,0.18949]
[1769854404786,3.84753164,2644.5,2643.2,3.77591067]
[1769854405798,3.84753164,2644.5,2643.6,0.18944]
[1769854405996,3.84753164,2644.5,2643.7,0.18943]
[1769854420504,3.84753164,2644.5,2643.8,0.18943]
[1769854427420,3.84753164,2644.5,2643.9,1.15755973]
[1769854427620,3.84753164,2644.5,2644.1,0.1894]
[1769854427821,2.22,2645.3,2644.2,0.1894]
[1769854428819,2.2243382,2645.3,2644.2,0.1894]
[1769854429821,3.52259157,2645.2,2644.2,0.1894]
[1769854433812,3.52259157,2645.2,2643.8,8.21219044]
[1769854434017,3.36096745,2645.1,2643.8,8.21219044]
[1769854434213,3.36096745,2645.1,2643.8,3.60061702]
[1769854434618,3.36096745,2645.1,2644.2,0.1894]
[1769854436429,2.73322072,2644.9,2643.8,8.21219044]
[1769854437030,2.73322072,2644.9,2643.5,0.18945]
[1769854437419,1.15755973,2644.7,2643.5,0.18945]
[1769854437623,6.06289762,2645.2,2643.5,0.18945]
[1769854437624,2.26789762,2645.1,2643.5,0.18945]
[1769854437820,10.09424531,2645.0,2643.2,9.79926954]
[1769854438027,4.03134769,2644.9,2643.1,3.92420506]
[1769854442024,0.18934,2645.1,2643.1,3.92420506]
[1769854442229,4.0274045,2645.0,2643.1,3.92420506]
[1769854442434,0.18934,2645.1,2643.1,3.92420506]
[1769854442634,44.82688131,2645.0,2643.1,4.11368506]
[1769854442831,40.8,2645.0,2643.1,4.11368506]
[1769854443032,0.18934,2645.1,2643.1,4.11368506]
[1769854443236,4.02688072,2645.0,2643.1,4.11368506]
[1769854443438,40.98934,2645.1,2643.1,4.11368506]
[1769854443737,4.02643257,2645.0,2643.1,4.11368506]
[1769854443935,40.98934,2645.1,2643.1,4.11368506]
[1769854444138,4.02643259,2645.0,2643.1,4.11368506]
[1769854444336,40.98934,2645.1,2643.1,4.11368506]
[1769854444538,4.02603632,2645.0,2643.1,4.11368506]
[1769854444838,40.98934,2645.1,2643.1,4.11368506]
[1769854445048,4.02603624,2645.0,2643.3,3.92283657]
[1769854445337,40.98934,2645.1,2643.3,3.92283657]
[1769854445537,4.02568629,2645.0,2643.3,3.92283657]
[1769854445733,40.98934,2645.1,2643.3,3.92283657]
[1769854445930,4.02568629,2645.0,2643.3,3.92283657]
[1769854446130,40.98934,2645.1,2643.3,3.92283657]
[1769854446326,4.02555042,2645.0,2643.3,3.92283657]
[1769854446536,0.18934,2645.1,2643.3,3.92283657]
[1769854446733,4.0253778,2645.0,2643.3,3.92283657]
[1769854446938,0.18934,2645.1,2643.3,3.92283657]
[1769854447238,4.0253778,2645.0,2643.3,3.92283657]
[1769854447443,0.18934,2645.1,2643.3,3.92283657]
[1769854447645,4.02510754,2645.0,2643.3,3.92283657]
[1769854447847,0.18934,2645.1,2643.3,3.92283657]
[1769854448045,4.0251075,2645.0,2643.3,3.92283657]
[1769854448344,7.74323582,2645.3,2643.5,3.91993039]
[1769854448544,5.4753382,2645.3,2643.7,3.91993039]
[1769854452853,5.19170133,2645.2,2643.7,3.91993039]
[1769854453149,3.98435,2645.0,2643.4,3.92341198]
[1769854453650,4.03396357,2644.9,2643.4,3.92341198]
[1769854453848,5.576,2644.8,2643.4,3.92341198]
[1769854454044,5.576,2644.8,2643.1,3.92341198]
[1769854455254,5.576,2644.8,2643.1,4.11289198]
[1769854455442,5.576,2644.8,2643.2,3.92341198]
[1769854455948,5.576,2644.8,2643.2,4.11288198]
[1769854457246,5.576,2644.8,2643.3,3.92341198]
[1769854459050,5.576,2644.8,2643.3,4.11287198]